bitfinex-derivatives/quotes_SOLF0:USTF0_20251002
["timestamp","ask_amount","ask_price","bid_price","bid_amount"]
[1759410470205,15.65600327,226.95,226.94,3.9638]
[1759410470615,7.81,226.96,226.94,3.9638]
[1759410470810,15.65600327,226.95,226.94,3.9638]
[1759410471308,7.81,226.96,226.94,3.9638]
[1759410471515,15.65600327,226.95,226.94,3.9638]
[1759410471911,7.81,226.96,226.94,3.9638]
[1759410472214,15.65600327,226.95,226.94,3.9638]
[1759410472713,7.81,226.96,226.94,3.9638]
[1759410472913,15.65600327,226.95,226.94,3.9638]
[1759410473114,7.81,226.96,226.94,3.9638]
[1759410473306,7.81,227.02,226.93,61.663]
[1759410473506,15.65600327,226.97,226.93,61.663]
[1759410473910,2.66843421,227.03,226.97,3.9632]
[1759410474418,15.65600327,226.98,226.97,3.9632]
[1759410475810,23.30600327,226.98,226.97,3.9632]
[1759410476006,15.65600327,226.98,226.94,3.9637]
[1759410476221,7.65,227.02,226.94,3.9637]
[1759410476516,15.65600327,226.95,226.94,3.9637]
[1759410476705,7.65,227.02,226.94,3.9637]
[1759410476906,7.65,226.95,226.94,3.9637]
[1759410479618,23.30600327,226.95,226.94,3.9637]
[1759410480022,15.65600327,226.95,226.92,3.9641]
[1759410480216,7.65,226.93,226.92,3.9641]
[1759410480518,23.30600327,226.93,226.92,3.9641]
[1759410481419,7.65,226.92,226.89,3.9646]
[1759410481809,7.65,226.91,226.85,3.9653]
[1759410482014,7.65,226.87,226.8,1.70737818]
[1759410482224,7.65,226.87,226.77,1.70737818]
[1759410482225,7.65,226.86,226.77,1.70737818]
[1759410482519,15.65600327,226.83,226.81,3.9661]
[1759410482922,23.30600327,226.83,226.81,3.9661]
[1759410484913,15.65600327,226.83,226.81,3.9661]
[1759410485713,23.30600327,226.83,226.81,3.9661]
[1759410488025,7.65,226.82,226.81,3.9661]
[1759410488425,7.65,226.85,226.76,1.70737818]
[1759410488623,23.30600327,226.82,226.76,1.70737818]
[1759410489126,7.65,226.8,226.79,3.9663]
[1759410491033,15.65600327,226.8,226.68,61.729]
[1759410491236,7.65,226.74,226.68,1.70737818]
[1759410491437,23.30600327,226.74,226.68,1.70737818]
[1759410492027,23.30600327,226.73,226.68,1.70737818]
[1759410492424,7.65,226.75,226.66,75.20333923]
[1759410492634,15.65600327,226.73,226.67,1.70737818]
[1759410492829,7.65,226.74,226.67,1.70737818]
[1759410493029,15.65600327,226.73,226.67,1.70737818]
[1759410493435,7.65,226.74,226.67,1.70737818]
[1759410493635,23.30600327,226.73,226.72,3.9675]
[1759410493935,7.65,226.73,226.65,1.70737818]
[1759410494238,23.30600327,226.68,226.65,1.70737818]
[1759410494625,7.65,226.68,226.67,3.9682]
[1759410495033,23.30600327,226.68,226.67,3.9682]
[1759410500742,7.65,226.67,226.65,3.9688]
[1759410501045,23.30600327,226.66,226.65,3.9688]
[1759410501547,1.70737818,226.7,226.63,3.9692]
[1759410501744,7.65,226.69,226.63,3.9692]
[1759410501944,1.70737818,226.7,226.63,3.9692]
[1759410501945,23.30600327,226.64,226.63,3.9692]
[1759410502347,7.65,226.64,226.63,3.9692]
[1759410503146,23.30600327,226.64,226.63,3.9692]
[1759410503944,23.30600327,226.64,226.57,1.70737818]
[1759410504149,7.42,226.6,226.57,1.70737818]
[1759410504349,7.42,226.6,226.56,61.7606]
[1759410504943,7.42,226.6,226.58,3.9701]
[1759410505142,7.42,226.64,226.58,3.9701]
[1759410505346,7.42,226.59,226.58,3.9701]
[1759410506544,1.70737818,226.65,226.6,3.9696]
[1759410506748,7.42,226.64,226.6,3.9696]
[1759410506954,1.70737818,226.65,226.6,3.9696]
[1759410507152,23.07600327,226.61,226.6,3.9696]
[1759410507454,15.65600327,226.61,226.6,3.9696]
[1759410507949,23.07600327,226.61,226.6,3.9696]
[1759410516661,7.42,226.64,226.55,61.7647]
[1759410516859,15.65600327,226.61,226.56,61.7629]
[1759410517053,23.07600327,226.61,226.56,61.7629]
[1759410517251,7.42,226.61,226.6,3.9697]
[1759410518163,15.65600327,226.61,226.57,3.9701]
[1759410518352,7.42,226.58,226.57,3.9701]
[1759410523457,7.42,226.68,226.61,3.9694]
[1759410523661,7.42,226.64,226.56,61.7629]
[1759410523858,15.65600327,226.59,226.56,61.7629]
[1759410524166,15.65600327,226.59,226.57,3.9703]
[1759410524466,7.42,226.58,226.57,3.9703]
[1759410526868,1.70737818,226.63,226.6,3.9697]
[1759410527265,23.07600327,226.61,226.6,3.9697]
[1759410528360,15.65600327,226.61,226.58,3.97]
[1759410528562,23.07600327,226.59,226.58,3.97]
[1759410533262,15.65600327,226.59,226.58,3.97]
[1759410533465,7.42,226.63,226.62,3.9694]
[1759410533664,23.07600327,226.63,226.62,3.9694]
[1759410534566,23.07600327,226.63,226.54,61.7678]
[1759410534761,1.70737818,226.65,226.54,61.7678]
[1759410534762,15.65600327,226.6,226.54,61.7678]
[1759410535271,22.84600327,226.6,226.59,3.9697]
[1759410543876,15.65600327,226.6,226.56,4.24]
[1759410544083,7.19,226.57,226.56,4.24]
[1759410545583,7.19,226.67,226.56,4.24]
[1759410545779,22.84600327,226.6,226.56,4.24]
[1759410545979,22.84600327,226.6,226.59,3.9699]
[1759410548185,3.968,226.7,226.57,61.7596]
[1759410548387,390.13200162,226.75,226.58,61.7564]
[1759410548388,15.65600327,226.63,226.58,61.7564]
[1759410548782,15.65600327,226.63,226.56,4.24]
[1759410548783,7.19,226.62,226.56,4.24]
[1759410548978,22.84600327,226.62,226.56,4.24]
[1759410549187,7.19,226.61,226.59,3.9698]
[1759410549377,7.19,226.68,226.56,4.24]
[1759410549581,7.19,226.6,226.56,4.24]
[1759410549789,7.19,226.6,226.59,3.9699]
[1759410550887,7.19,226.59,226.57,3.9702]
[1759410551391,7.19,226.64,226.57,3.9702]
[1759410551593,7.19,226.59,226.57,3.9702]
[1759410551787,7.19,226.59,226.58,10.11]
[1759410553390,2.67594683,226.65,226.6,3.9697]
[1759410553794,22.84600327,226.61,226.6,3.9697]
[1759410554690,22.84600327,226.61,226.58,10.11]
[1759410554889,7.19,226.59,226.58,10.11]
[1759410560305,22.84600327,226.59,226.58,10.11]
[1759410565807,15.65600327,226.59,226.58,10.11]
[1759410566112,7.21,226.68,226.58,10.11]
[1759410566310,7.21,226.68,226.59,61.7545]
[1759410566505,15.65600327,226.64,226.59,61.7545]
[1759410566808,15.65600327,226.64,226.63,3.9692]
[1759410568910,22.86600327,226.64,226.63,3.9692]
[1759410572313,108.68,226.72,226.64,3.9689]
[1759410572515,15.65600327,226.65,226.64,3.9689]
[1759410573615,22.86600327,226.65,226.64,3.9689]
[1759410576018,108.66,226.72,226.67,3.9685]
[1759410576518,22.86600327,226.68,226.67,3.9685]
[1759410577012,7.21,226.67,226.64,3.9689]
[1759410577217,7.21,226.66,226.64,3.9689]
[1759410577517,7.21,226.71,226.64,3.9689]
[1759410577717,15.65600327,226.67,226.64,3.9689]
[1759410577912,7.21,226.67,226.64,3.9689]
[1759410578117,7.21,226.71,226.64,3.9689]
[1759410578312,108.66,226.72,226.65,3.9687]
[1759410578519,22.86600327,226.66,226.65,3.9687]
[1759410579418,15.65600327,226.66,226.65,3.9687]
[1759410579616,7.21,226.69,226.68,3.9683]
[1759410579816,108.64,226.74,226.68,3.9683]
[1759410580021,7.21,226.73,226.68,3.9683]
[1759410580315,22.86600327,226.7,226.68,3.9683]
[1759410582215,7.21,226.7,226.68,3.9683]
[1759410583420,7.21,226.74,226.68,3.9683]
[1759410583720,7.21,226.69,226.68,3.9683]
[1759410584116,7.21,226.74,226.61,65.9981]
[1759410584319,7.21,226.69,226.62,61.7459]
[1759410585222,7.21,226.69,226.67,3.9684]
[1759410585823,7.21,226.74,226.67,3.9684]
[1759410586122,15.65600327,226.7,226.67,3.9684]
[1759410586327,7.21,226.69,226.67,3.9684]
[1759410587225,7.21,226.74,226.7,3.9679]
[1759410587419,429.78,226.75,226.7,3.9679]
[1759410587619,15.65600327,226.71,226.7,3.9679]
[1759410587820,22.86600327,226.71,226.7,3.9679]
[1759410588514,22.86600327,226.71,226.64,61.7396]
[1759410588515,7.21,226.7,226.68,3.9683]
[1759410588714,7.21,226.69,226.68,3.9683]
[1759410589314,7.21,226.74,226.66,5.28]
[1759410589517,15.65600327,226.7,226.66,5.28]
[1759410590418,15.65600327,226.7,226.69,3.9682]
[1759410590623,7.21,226.74,226.67,61.7327]
[1759410590823,15.65600327,226.72,226.67,61.7327]
[1759410591128,22.86600327,226.72,226.67,61.7327]
[1759410591529,22.86600327,226.72,226.71,3.9678]
[1759410591733,15.65600327,226.72,226.71,3.9678]
[1759410592122,7.21,226.75,226.73,3.9673]
[1759410592728,7.21,226.75,226.68,61.7302]
[1759410592729,15.65600327,226.74,226.71,3.9678]
[1759410592929,22.86600327,226.72,226.71,3.9678]
[1759410599641,7.16,226.71,226.7,4.25]
[1759410600239,1.71069892,226.77,226.73,3.9673]
[1759410600439,7.16,226.76,226.73,3.9673]
[1759410600638,22.81600327,226.74,226.73,3.9673]
[1759410602335,15.65600327,226.74,226.73,3.9673]
[1759410602534,108.52,226.79,226.75,3.9671]
[1759410602741,7.16,226.78,226.72,61.7185]
[1759410602942,15.65600327,226.77,226.72,61.7185]
[1759410603332,7.16,226.82,226.74,63.42409892]
[1759410603535,7.16,226.8,226.7,4.25]
[1759410603739,7.16,226.77,226.7,4.25]
[1759410604038,7.16,226.74,226.71,3.9678]
[1759410604232,7.16,226.74,226.7,4.25]
[1759410604233,15.65600327,226.74,226.7,4.25]
[1759410604430,7.16,226.71,226.7,4.25]
[1759410604633,22.81600327,226.71,226.7,4.25]
[1759410610445,7.16,226.76,226.7,4.25]
[1759410610646,7.16,226.73,226.7,4.25]
[1759410611536,108.48,226.78,226.71,3.9678]
[1759410611837,15.65600327,226.74,226.71,3.9678]
[1759410612037,7.16,226.73,226.71,3.9678]
[1759410612237,108.48,226.78,226.72,3.9675]
[1759410612446,7.16,226.73,226.72,3.9675]
[1759410614946,7.16,226.72,226.71,10.08]
[1759410615144,22.81600327,226.72,226.71,10.08]
[1759410615450,1.71069892,226.77,226.72,3.9675]
[1759410615944,15.65600327,226.75,226.71,10.08]
[1759410616339,7.16,226.75,226.71,10.08]
[1759410616544,1.71069892,226.79,226.71,10.08]
[1759410616744,7.16,226.74,226.71,10.08]
[1759410617246,1.71069892,226.76,226.71,14.0478]
[1759410617446,7.16,226.79,226.71,14.0478]
[1759410617650,15.65600327,226.73,226.71,14.0478]
[1759410617850,22.81600327,226.74,226.71,10.08]
[1759410618246,7.16,226.73,226.71,14.0478]
[1759410618651,7.16,226.72,226.71,10.08]
[1759410622355,7.16,226.72,226.71,14.34]
[1759410623251,7.54,226.79,226.71,14.34]
[1759410623453,7.54,226.72,226.71,14.34]
[1759410627350,7.54,226.72,226.71,4.26]
[1759410627650,15.65600327,226.68,226.66,5.06372107]
[1759410627846,23.05600327,226.67,226.66,5.06372107]
[1759410628251,7.4,226.67,226.66,5.06372107]
[1759410629254,7.4,226.69,226.66,5.06372107]
[1759410629451,15.65600327,226.67,226.66,5.06372107]
[1759410630054,1.71069892,226.7,226.66,5.06372107]
[1759410630257,15.65600327,226.67,226.66,5.06372107]
[1759410630558,15.65600327,226.68,226.67,3.9684]
[1759410630947,15.65600327,226.68,226.66,5.06372107]
[1759410631456,23.05600327,226.68,226.66,5.06372107]
[1759410631855,23.05600327,226.68,226.66,9.03232107]
[1759410632056,15.65600327,226.68,226.66,9.03232107]
[1759410632256,23.05600327,226.68,226.66,9.03232107]
[1759410632653,50.3,226.74,226.69,3.9682]
[1759410632850,1.71069892,226.78,226.68,1.71069892]
[1759410633055,15.65600327,226.72,226.68,1.71069892]
[1759410633251,15.65600327,226.72,226.7,0.55]
[1759410633455,7.4,226.77,226.7,0.55]
[1759410633659,15.65600327,226.72,226.71,3.9678]
[1759410633854,7.4,226.77,226.71,3.9678]
[1759410634154,1.71069892,226.78,226.71,3.9678]
[1759410634155,23.05600327,226.73,226.71,3.9678]
[1759410636956,23.05600327,226.72,226.66,5.06372107]
[1759410637151,15.65600327,226.67,226.66,5.06372107]
[1759410637351,23.05600327,226.67,226.66,5.06372107]
[1759410639855,7.4,226.67,226.66,5.06372107]
[1759410640058,23.05600327,226.67,226.66,5.06372107]
[1759410644065,23.05600327,226.67,226.64,3.969]
[1759410644265,15.65600327,226.66,226.64,3.969]
[1759410644963,7.4,226.71,226.66,0.55]
[1759410645166,115.82,226.71,226.65,1.71069892]
[1759410645357,15.65600327,226.7,226.65,1.71069892]
[1759410645669,15.65600327,226.7,226.69,3.9682]
[1759410645860,108.42,226.71,226.69,3.9682]
[1759410646064,7.4,226.75,226.69,3.9682]
[1759410646364,15.65600327,226.71,226.69,3.9682]
[1759410646564,7.4,226.75,226.7,5.67849892]
[1759410646565,15.65600327,226.72,226.7,5.67849892]
[1759410646862,108.4,226.73,226.7,5.67849892]
[1759410647066,15.65600327,226.71,226.7,5.67849892]
[1759410647465,108.4,226.73,226.7,5.67849892]
[1759410647665,15.65600327,226.71,226.7,5.67849892]
[1759410648065,115.8,226.73,226.7,5.67849892]
[1759410648265,23.05600327,226.71,226.7,3.9678]
[1759410648667,7.4,226.71,226.7,3.9678]
[1759410649265,7.4,226.7,226.57,5.45586504]
[1759410649470,7.4,226.64,226.57,0.55]
[1759410649666,15.65600327,226.64,226.57,0.55]
[1759410649969,7.4,226.63,226.59,5.68059892]
[1759410650171,7.4,226.65,226.59,3.9699]
[1759410650367,7.4,226.62,226.59,3.9699]
[1759410650670,15.65600327,226.63,226.6,3.9696]
[1759410650671,23.05600327,226.63,226.6,3.9696]
[1759410651165,108.4,226.65,226.6,0.55]
[1759410651467,15.65600327,226.64,226.6,0.55]
[1759410651766,15.65600327,226.64,226.62,3.9694]
[1759410651966,15.65600327,226.64,226.62,4.5194]
[1759410653068,15.65600327,226.64,226.62,14.5894]
[1759410653970,15.65600327,226.64,226.62,14.0394]
[1759410655871,7.4,226.67,226.65,3.9688]
[1759410656077,131.94600327,226.66,226.65,3.9688]
[1759410658679,7.89,226.7,226.66,3.9685]
[1759410658879,7.89,226.68,226.66,3.9685]
[1759410659080,15.65600327,226.67,226.66,3.9685]
[1759410659385,23.54600327,226.67,226.66,3.9685]
[1759410660481,15.65600327,226.67,226.63,3.969]
[1759410660687,7.89,226.65,226.63,3.969]
[1759410660885,7.89,226.64,226.63,3.969]
[1759410661284,108.38,226.65,226.63,3.969]
[1759410661285,108.38,226.65,226.63,4.509]
[1759410662591,7.89,226.68,226.64,0.54]
[1759410662782,15.65600327,226.67,226.64,0.54]
[1759410663281,7.89,226.67,226.64,0.54]
[1759410663682,7.89,226.67,226.65,3.9688]
[1759410665590,15.65600327,226.67,226.65,3.9688]
[1759410665790,15.65600327,226.67,226.63,3.9692]
[1759410665988,7.89,226.65,226.62,10.07]
[1759410666287,23.54600327,226.63,226.62,10.07]
[1759410666592,131.92600327,226.63,226.62,10.07]
[1759410669995,116.27,226.63,226.62,2.18]
[1759410670189,131.92600327,226.63,226.62,2.18]
[1759410672592,132.36600327,226.63,226.57,5.07]
[1759410672799,23.54600327,226.58,226.57,5.07]
[1759410672994,131.92600327,226.58,226.57,5.07]
[1759410674791,131.92600327,226.58,226.44,61.7932]
[1759410674792,61.7695,226.54,226.35,12.59586504]
[1759410674994,61.7695,226.54,226.35,7.69]
[1759410674995,23.54600327,226.43,226.35,7.69]
[1759410675297,69.72,226.42,226.35,7.69]
[1759410676400,15.65600327,226.41,226.35,7.69]
[1759410676595,15.65600327,226.41,226.36,11.6639]
[1759410676800,69.72,226.42,226.36,11.6639]
[1759410676995,23.54600327,226.41,226.36,11.6639]
[1759410677304,15.65600327,226.41,226.36,3.9739]
[1759410677501,7.89,226.4,226.36,3.9739]
[1759410678601,77.61,226.42,226.36,3.9739]
[1759410678804,7.89,226.4,226.36,3.9739]
[1759410679104,77.61,226.42,226.36,3.9739]
[1759410679303,23.54600327,226.41,226.36,3.9739]
[1759410679607,7.89,226.4,226.36,3.9739]
[1759410680106,69.72,226.42,226.36,3.9739]
[1759410680401,15.65600327,226.4,226.36,3.9739]
[1759410680609,23.54600327,226.4,226.36,3.9739]
[1759410680808,7.89,226.4,226.36,3.9739]
[1759410681999,7.89,226.39,226.36,3.9739]
[1759410682805,7.5,226.41,226.33,3.9744]
[1759410683012,15.65600327,226.39,226.33,3.9744]
[1759410683308,15.65600327,226.39,226.37,3.9737]
[1759410683507,7.5,226.42,226.37,3.9737]
[1759410683706,15.65600327,226.39,226.34,7.45]
[1759410683910,23.15600327,226.39,226.31,2.6744706]
[1759410684203,23.15600327,226.39,226.36,3.9739]
[1759410685105,7.83,226.38,226.36,3.9739]
[1759410685404,7.83,226.38,226.32,3.9745]
[1759410685608,7.83,226.38,226.31,2.6744706]
[1759410685609,23.48600327,226.38,226.31,2.6744706]
[1759410686006,23.48600327,226.38,226.3,7.45]
[1759410686202,23.48600327,226.38,226.31,3.9747]
[1759410686406,15.65600327,226.37,226.3,7.45]
[1759410687006,7.83,226.34,226.29,2.6744706]
[1759410687201,15.65600327,226.33,226.27,11.90167373]
[1759410687706,7.83,226.34,226.27,11.90167373]
[1759410687903,15.65600327,226.33,226.27,11.90167373]
[1759410689207,15.65600327,226.33,226.27,19.34167373]
[1759410689807,23.48600327,226.32,226.27,19.34167373]
[1759410690008,23.48600327,226.32,226.3,3.9748]
[1759410690205,7.83,226.32,226.3,3.9748]
[1759410691007,7.83,226.3,226.16,7.44]
[1759410691211,43.92,226.29,226.16,7.44]
[1759410691505,15.65600327,226.23,226.16,7.44]
[1759410691711,23.48600327,226.23,226.19,11.4169]
[1759410692808,23.48600327,226.23,226.21,3.9766]
[1759410693107,15.65600327,226.23,226.21,3.9766]
[1759410693704,23.48600327,226.23,226.18,11.417]
[1759410693903,15.65600327,226.22,226.18,11.417]
[1759410694107,23.48600327,226.21,226.18,3.977]
[1759410694314,15.65600327,226.21,226.18,11.417]
[1759410694707,15.65600327,226.21,226.18,3.977]
[1759410694907,15.65600327,226.2,226.18,3.977]
[1759410695105,7.83,226.19,226.15,6.6519706]
[1759410695406,7.83,226.23,226.15,2.6744706]
[1759410695614,7.83,226.23,226.16,7.44]
[1759410695615,15.65600327,226.2,226.16,7.44]
[1759410695811,15.65600327,226.2,226.18,3.977]
[1759410696009,7.83,226.27,226.18,3.977]
[1759410696316,15.65600327,226.2,226.18,3.977]
[1759410696912,7.83,226.18,226.08,2.6744706]
[1759410697216,15.65600327,226.15,226.08,10.1144706]
[1759410697404,46.88,226.18,226.08,7.44]
[1759410697608,23.48600327,226.14,226.06,2.6744706]
[1759410698016,7.83,226.17,226.09,3.9786]
[1759410698210,2.6744706,226.23,226.09,3.9786]
[1759410698211,23.48600327,226.14,226.09,61.8916]
[1759410698513,23.48600327,226.14,226.07,61.8971]
[1759410698708,7.83,226.14,226.07,61.8971]
[1759410699208,7.83,226.13,226.04,61.9048]
[1759410699512,15.65600327,226.11,226.06,61.899]
[1759410699711,7.83,226.13,226.06,61.899]
[1759410699712,7.83,226.13,226.07,7.44]
[1759410700115,62.74,226.19,226.1,61.888]
[1759410700316,15.65600327,226.14,226.1,61.888]
[1759410700612,15.65600327,226.14,226.11,3.9783]
[1759410702317,7.83,226.17,226.12,7.44]
[1759410702511,7.83,226.21,226.12,64.5566706]
[1759410702816,15.65600327,226.18,226.12,64.5566706]
[1759410703712,15.65600327,226.18,226.13,7.44]
[1759410703917,324.2544706,226.26,226.17,3.9773]
[1759410704111,15.65600327,226.18,226.17,3.9773]
[1759410704912,23.48600327,226.18,226.12,61.8822]
[1759410705214,15.65600327,226.13,226.06,61.8994]
[1759410705611,321.58,226.26,226.1,69.3288]
[1759410705612,7.83,226.25,226.1,69.3288]
[1759410705814,7.83,226.19,226.1,69.3288]
[1759410706013,112.1344706,226.24,226.1,69.3288]
[1759410706014,15.65600327,226.16,226.14,3.9778]
[1759410706216,23.48600327,226.16,226.14,3.9778]
[1759410710222,15.65600327,226.16,226.14,3.9778]
[1759410710413,39.3,226.21,226.16,3.9774]
[1759410710620,15.65600327,226.17,226.16,3.9774]
[1759410711123,39.3,226.21,226.16,3.9774]
[1759410711324,15.65600327,226.17,226.16,3.9774]
[1759410711627,7.83,226.2,226.19,3.9769]
[1759410712116,15.65600327,226.2,226.19,3.9769]
[1759410712316,2.6744706,226.27,226.14,61.8762]
[1759410712317,42.9,226.27,226.17,61.8677]
[1759410712521,15.65600327,226.21,226.17,69.3077]
[1759410713131,15.65600327,226.21,226.16,61.8717]
[1759410713132,7.83,226.31,226.2,61.8604]
[1759410713422,15.65600327,226.23,226.18,61.8663]
[1759410713626,15.65600327,226.23,226.19,7.44]
[1759410713827,7.83,226.3,226.23,3.9761]
[1759410714028,10.92243037,226.3,226.23,3.9761]
[1759410714228,15.65600327,226.24,226.23,3.9761]
[1759410714922,7.83,226.3,226.23,3.9761]
[1759410715129,15.65600327,226.25,226.23,3.9761]
[1759410715322,7.83,226.3,226.18,69.3063]
[1759410715323,15.65600327,226.26,226.24,3.9759]
[1759410715726,7.83,226.3,226.21,61.8567]
[1759410715921,15.65600327,226.26,226.21,61.8567]
[1759410716130,15.65600327,226.26,226.22,7.45]
[1759410716430,7.83,226.3,226.22,7.45]
[1759410716632,15.65600327,226.26,226.25,3.9757]
[1759410717230,3.10631306,226.26,226.22,61.8556]
[1759410717435,3.10631306,226.29,226.22,69.3056]
[1759410717630,15.65600327,226.26,226.22,61.8556]
[1759410717828,15.65600327,226.26,226.23,7.45]
[1759410718034,7.69,226.31,226.28,3.9753]
[1759410718331,7.69,226.29,226.28,3.9753]
[1759410718530,26.45238892,226.29,226.28,3.9753]
[1759410719925,3.10638565,226.29,226.28,3.9753]
[1759410720333,7.69,226.27,226.18,71.03363312]
[1759410720532,15.65600327,226.24,226.18,71.03363312]
[1759410720729,3.10638565,226.23,226.18,71.03363312]
[1759410720930,3.10638565,226.22,226.18,71.03363312]
[1759410721135,15.65600327,226.24,226.18,63.58363312]
[1759410721334,3.11583401,226.23,226.18,63.58363312]
[1759410721534,9.40733312,226.27,226.2,7.45]
[1759410721744,15.65600327,226.24,226.2,69.3106]
[1759410721946,3.11575808,226.23,226.21,7.45]
[1759410722147,7.69,226.27,226.25,3.9758]
[1759410722444,18.77312086,226.26,226.25,3.9758]
[1759410722843,3.11711759,226.26,226.25,11.4258]
[1759410723737,7.69,226.31,226.3,3.975]
[1759410724050,23.34600327,226.31,226.3,3.975]
[1759410725549,15.65600327,226.31,226.3,3.975]
[1759410725746,7.69,226.36,226.3,3.975]
[1759410725938,4.84006774,226.42,226.33,3.9743]
[1759410725939,1.71733312,226.39,226.33,3.9743]
[1759410726141,4.84006774,226.43,226.3,63.55083312]
[1759410726447,15.65600327,226.35,226.3,63.55083312]
[1759410726647,15.65600327,226.36,226.31,7.45]
[1759410726845,23.34600327,226.36,226.31,7.45]
[1759410727350,7.69,226.35,226.33,3.9745]
[1759410727544,15.65600327,226.35,226.27,7.45]
[1759410727748,15.65600327,226.34,226.27,9.16733312]
[1759410727938,15.65600327,226.34,226.31,3.9748]
[1759410728144,7.69,226.33,226.31,3.9748]
[1759410732452,7.69,226.36,226.33,3.9744]
[1759410732859,7.69,226.36,226.27,69.2918]
[1759410733053,23.34600327,226.33,226.31,3.9747]
[1759410733456,7.69,226.33,226.31,3.9747]
[1759410736245,109.18,226.42,226.29,3.9752]
[1759410736246,7.69,226.31,226.29,3.9752]
[1759410736446,15.65600327,226.3,226.29,3.9752]
[1759410736650,23.34600327,226.3,226.29,3.9752]
[1759410738258,7.69,226.29,226.26,3.9756]
[1759410738458,7.69,226.28,226.26,3.9756]
[1759410739555,7.69,226.3,226.26,3.9756]
[1759410739750,7.69,226.28,226.26,3.9756]
[1759410739947,23.34600327,226.29,226.28,3.9754]
[1759410740151,7.69,226.29,226.28,3.9754]
[1759410740958,15.65600327,226.29,226.25,3.9758]
[1759410741255,23.34600327,226.27,226.25,3.9758]
[1759410741652,7.69,226.27,226.25,3.9758]
[1759410741853,7.69,226.25,226.22,3.9763]
[1759410742049,15.65600327,226.25,226.19,7.45]
[1759410742255,7.69,226.26,226.19,7.45]
[1759410742450,15.65600327,226.25,226.19,7.45]
[1759410742854,7.69,226.26,226.19,7.45]
[1759410743057,15.65600327,226.25,226.19,7.45]
[1759410743462,7.69,226.26,226.19,7.45]
[1759410743662,7.67,226.26,226.19,7.45]
[1759410743853,7.67,226.22,226.18,1.71733312]
[1759410744360,7.67,226.22,226.18,9.59733312]
[1759410744557,1.71733312,226.27,226.23,3.9762]
[1759410745057,15.65600327,226.24,226.23,3.9762]
[1759410746159,22.88600327,226.24,226.23,3.9762]
[1759410747059,7.23,226.34,226.26,3.9756]
[1759410747259,7.23,226.34,226.24,7.88]
[1759410747260,8.94733312,226.34,226.24,7.88]
[1759410747460,15.65600327,226.3,226.25,1.71733312]
[1759410747665,22.88600327,226.3,226.25,9.59733312]
[1759410747964,15.65600327,226.29,226.25,1.71733312]
[1759410748170,15.65600327,226.29,226.26,7.88]
[1759410748361,7.23,226.3,226.26,7.88]
[1759410748563,15.65600327,226.29,226.26,7.88]
[1759410748964,7.23,226.3,226.26,7.88]
[1759410749161,15.65600327,226.29,226.26,7.88]
[1759410749369,7.23,226.26,226.08,7.88]
[1759410749565,15.65600327,226.15,226.11,7.88]
[1759410749760,15.65600327,226.15,226.12,11.8582]
[1759410749961,8.94733312,226.2,226.11,7.88]
[1759410750159,15.65600327,226.17,226.11,7.88]
[1759410750566,15.65600327,226.16,226.11,7.88]
[1759410750871,22.88600327,226.16,226.11,7.88]
[1759410751164,7.23,226.16,226.1,7.88]
[1759410751357,77.03210162,226.35,226.1,7.88]
[1759410751358,8.94733312,226.2,226.11,61.8864]
[1759410751565,15.65600327,226.17,226.13,61.8806]
[1759410751861,1.71733312,226.22,226.15,61.8755]
[1759410752063,15.65600327,226.21,226.16,7.88]